[Event "Early-Titled-Tuesday-Blitz-April-02-2024"]
[Site "Chess.com"]
[Date "2024.04.02"]
[Round "2"]
[White "artin10862"]
[Black "Sanyura"]
[Result "1-0"]
[WhiteElo "2926"]
[BlackElo "2620"]
[TimeControl "180+1"]
[EndTime "8:16:26 PDT"]
[Termination "artin10862 won by resignation"]

1. c4 {[%clk 0:03:00.9]} 1... Nf6 {[%clk 0:02:59.1]} 2. d4 {[%clk 0:03:00.9]}
2... g6 {[%clk 0:02:58.8]} 3. e3 {[%clk 0:02:58]} 3... Bg7 {[%clk 0:02:58.6]} 4.
Nc3 {[%clk 0:02:57.7]} 4... O-O {[%clk 0:02:58.5]} 5. Nf3 {[%clk 0:02:57.5]}
5... d6 {[%clk 0:02:58.5]} 6. Be2 {[%clk 0:02:56.6]} 6... Nbd7 {[%clk 0:02:58]}
7. O-O {[%clk 0:02:54.7]} 7... e5 {[%clk 0:02:57.4]} 8. Qc2 {[%clk 0:02:55]}
8... exd4 {[%clk 0:02:57.3]} 9. exd4 {[%clk 0:02:54.1]} 9... Re8 {[%clk
0:02:55.2]} 10. h3 {[%clk 0:02:49.9]} 10... h6 {[%clk 0:02:53.6]} 11. Bd3 {[%clk
0:02:43.9]} 11... Nf8 {[%clk 0:02:49.2]} 12. b4 {[%clk 0:02:41.8]} 12... a5
{[%clk 0:02:48.4]} 13. b5 {[%clk 0:02:41.5]} 13... Nh5 {[%clk 0:02:40.2]} 14.
Rb1 {[%clk 0:02:35.3]} 14... Ne6 {[%clk 0:02:39.2]} 15. Be3 {[%clk 0:02:32]}
15... Nef4 {[%clk 0:02:36.9]} 16. Be4 {[%clk 0:02:29.6]} 16... Rb8 {[%clk
0:02:24.5]} 17. Rfe1 {[%clk 0:02:20.8]} 17... Qf6 {[%clk 0:02:20.6]} 18. Kh2
{[%clk 0:01:53.6]} 18... Ne6 {[%clk 0:01:32.9]} 19. Nd5 {[%clk 0:01:38.4]} 19...
Qd8 {[%clk 0:01:32]} 20. Bxg6 {[%clk 0:01:36.1]} 20... fxg6 {[%clk 0:01:24.9]}
21. Qxg6 {[%clk 0:01:37]} 21... Nf6 {[%clk 0:01:22.6]} 22. Nxf6+ {[%clk
0:01:36.8]} 22... Qxf6 {[%clk 0:01:20.6]} 23. Qxe8+ {[%clk 0:01:36.8]} 23... Kh7
{[%clk 0:01:08.9]} 24. d5 {[%clk 0:01:35.3]} 24... Nf4 {[%clk 0:01:06.5]} 25.
Qe4+ {[%clk 0:01:32.3]} 25... Ng6 {[%clk 0:01:05.1]} 26. Bd4 {[%clk 0:01:32.7]}
26... Qf7 {[%clk 0:01:01.6]} 27. Nh4 {[%clk 0:01:27.5]} 27... Bxd4 {[%clk
0:00:58.3]} 28. Qxd4 {[%clk 0:01:21.3]} 28... Bf5 {[%clk 0:00:51]} 29. Nxg6
{[%clk 0:01:18.1]} 29... Bxg6 {[%clk 0:00:42.5]} 30. Rb3 {[%clk 0:01:17.1]}
30... Rg8 {[%clk 0:00:41.5]} 31. Rf3 {[%clk 0:01:15.2]} 31... Qd7 {[%clk
0:00:39.5]} 32. Re6 {[%clk 0:01:13.5]} 32... Rg7 {[%clk 0:00:39.6]} 33. Rff6
{[%clk 0:01:11.1]} 33... c6 {[%clk 0:00:32.9]} 34. dxc6 {[%clk 0:01:09.6]} 34...
bxc6 {[%clk 0:00:33.8]} 35. Rxd6 {[%clk 0:01:10.3]} 35... Qc7 {[%clk 0:00:33.5]}
36. b6 {[%clk 0:01:10.3]} 36... Qe7 {[%clk 0:00:32.3]} 37. Rxg6 {[%clk
0:01:08.9]} 1-0

[Event "Early-Titled-Tuesday-Blitz-April-02-2024"]
[Site "Chess.com"]
[Date "2024.04.02"]
[Round "2"]
[White "MITerryble"]
[Black "TitarovVasiliYouTube"]
[Result "1-0"]
[WhiteElo "2987"]
[BlackElo "2633"]
[TimeControl "180+1"]
[EndTime "8:16:29 PDT"]
[Termination "MITerryble won by resignation"]

1. d4 {[%clk 0:02:56.5]} 1... d5 {[%clk 0:02:58.4]} 2. Bg5 {[%clk 0:02:56.1]}
2... Bf5 {[%clk 0:02:53.5]} 3. e3 {[%clk 0:02:55.8]} 3... c6 {[%clk 0:02:52.2]}
4. Bd3 {[%clk 0:02:56]} 4... Bxd3 {[%clk 0:02:52.1]} 5. Qxd3 {[%clk 0:02:56.9]}
5... Nd7 {[%clk 0:02:52.8]} 6. Nf3 {[%clk 0:02:56.5]} 6... Ngf6 {[%clk
0:02:53.5]} 7. Nbd2 {[%clk 0:02:56.4]} 7... e6 {[%clk 0:02:54]} 8. O-O {[%clk
0:02:56.5]} 8... Be7 {[%clk 0:02:54]} 9. c4 {[%clk 0:02:57]} 9... O-O {[%clk
0:02:53.9]} 10. Rab1 {[%clk 0:02:57.5]} 10... a5 {[%clk 0:02:53]} 11. Rfc1
{[%clk 0:02:56.8]} 11... h6 {[%clk 0:02:52.5]} 12. Bh4 {[%clk 0:02:56.2]} 12...
Re8 {[%clk 0:02:50]} 13. h3 {[%clk 0:02:53.9]} 13... Qb6 {[%clk 0:02:39]} 14.
Bg3 {[%clk 0:02:52.4]} 14... Qa6 {[%clk 0:02:27]} 15. Qf1 {[%clk 0:02:34.9]}
15... Ne4 {[%clk 0:02:21.7]} 16. Nxe4 {[%clk 0:02:19.4]} 16... dxe4 {[%clk
0:02:22.6]} 17. Nd2 {[%clk 0:02:19.4]} 17... f5 {[%clk 0:02:21.5]} 18. c5 {[%clk
0:02:15.1]} 18... Qxf1+ {[%clk 0:02:17]} 19. Kxf1 {[%clk 0:02:16]} 19... Nf6
{[%clk 0:02:11.9]} 20. Nc4 {[%clk 0:02:16.4]} 20... Nd5 {[%clk 0:02:12.2]} 21.
Be5 {[%clk 0:02:11.3]} 21... g5 {[%clk 0:02:07.8]} 22. Ke2 {[%clk 0:02:06.9]}
22... Rf8 {[%clk 0:02:05]} 23. f3 {[%clk 0:02:07]} 23... Nb4 {[%clk 0:01:10.9]}
24. fxe4 {[%clk 0:01:52.2]} 24... Nxa2 {[%clk 0:01:09]} 25. Rf1 {[%clk
0:01:52.7]} 25... fxe4 {[%clk 0:01:08.8]} 26. Nd2 {[%clk 0:01:52.8]} 26... Nb4
{[%clk 0:01:06.6]} 27. Nxe4 {[%clk 0:01:53]} 27... Nd5 {[%clk 0:01:05.4]} 28.
Rxf8+ {[%clk 0:01:48.1]} 28... Rxf8 {[%clk 0:01:06.3]} 29. Ra1 {[%clk
0:01:48.4]} 29... Bd8 {[%clk 0:01:03.5]} 30. Nd6 {[%clk 0:01:47]} 30... b6
{[%clk 0:00:57.6]} 31. cxb6 {[%clk 0:01:47.6]} 31... Bxb6 {[%clk 0:00:58.5]} 32.
Nc4 {[%clk 0:01:47.4]} 32... Ra8 {[%clk 0:00:51.3]} 33. e4 {[%clk 0:01:46.3]}
33... Bd8 {[%clk 0:00:46.4]} 34. exd5 {[%clk 0:01:46.4]} 34... cxd5 {[%clk
0:00:47.3]} 35. Nd2 {[%clk 0:01:38.2]} 35... a4 {[%clk 0:00:44.7]} 36. Nb3
{[%clk 0:01:36.5]} 36... Rc8 {[%clk 0:00:31.4]} 37. Nc5 {[%clk 0:01:35.2]} 37...
Be7 {[%clk 0:00:30.7]} 38. Rxa4 {[%clk 0:01:28.5]} 38... Bxc5 {[%clk 0:00:30.6]}
39. dxc5 {[%clk 0:01:29.4]} 39... Rxc5 {[%clk 0:00:31.5]} 40. Kd3 {[%clk
0:01:28.9]} 40... Rb5 {[%clk 0:00:31]} 41. b4 {[%clk 0:01:29]} 41... d4 {[%clk
0:00:29.9]} 42. Kxd4 {[%clk 0:01:28.5]} 42... Rd5+ {[%clk 0:00:29.7]} 43. Ke4
{[%clk 0:01:29.1]} 43... Rd2 {[%clk 0:00:30.6]} 44. g3 {[%clk 0:01:22.7]} 44...
Rh2 {[%clk 0:00:28.9]} 45. b5 {[%clk 0:01:22.3]} 45... Rxh3 {[%clk 0:00:29.3]}
46. b6 {[%clk 0:01:22.3]} 1-0

[Event "Early-Titled-Tuesday-Blitz-April-02-2024"]
[Site "Chess.com"]
[Date "2024.04.02"]
[Round "2"]
[White "GM_Levan_Pantsulaia"]
[Black "GP9isback23"]
[Result "1-0"]
[WhiteElo "2885"]
[BlackElo "2601"]
[TimeControl "180+1"]
[EndTime "8:16:32 PDT"]
[Termination "GM_Levan_Pantsulaia won by resignation"]

1. Nf3 {[%clk 0:03:00.9]} 1... Nf6 {[%clk 0:02:58.8]} 2. g3 {[%clk 0:03:00.2]}
2... b6 {[%clk 0:02:59]} 3. Bg2 {[%clk 0:03:00]} 3... Bb7 {[%clk 0:02:59.8]} 4.
O-O {[%clk 0:03:00.4]} 4... e6 {[%clk 0:03:00.5]} 5. c4 {[%clk 0:02:58.7]} 5...
Be7 {[%clk 0:03:00.4]} 6. d4 {[%clk 0:02:57.7]} 6... O-O {[%clk 0:02:59.1]} 7.
Nc3 {[%clk 0:02:58.3]} 7... Ne4 {[%clk 0:02:58.8]} 8. Qc2 {[%clk 0:02:57.5]}
8... Nxc3 {[%clk 0:02:58.4]} 9. bxc3 {[%clk 0:02:58.4]} 9... f5 {[%clk
0:02:55.3]} 10. d5 {[%clk 0:02:57.6]} 10... Na6 {[%clk 0:02:30.5]} 11. Nd4
{[%clk 0:02:55.5]} 11... Nc5 {[%clk 0:02:25.3]} 12. Rd1 {[%clk 0:02:54.4]} 12...
Qc8 {[%clk 0:02:23.6]} 13. Nb3 {[%clk 0:02:47.4]} 13... e5 {[%clk 0:02:12]} 14.
Ba3 {[%clk 0:02:29.6]} 14... d6 {[%clk 0:01:43.1]} 15. Bxc5 {[%clk 0:02:26.4]}
15... dxc5 {[%clk 0:01:39.3]} 16. Bh3 {[%clk 0:02:26.5]} 16... g6 {[%clk
0:01:27]} 17. e4 {[%clk 0:02:25.6]} 17... Ba6 {[%clk 0:01:15.6]} 18. Nd2 {[%clk
0:02:24.5]} 18... Qd7 {[%clk 0:01:13.9]} 19. Re1 {[%clk 0:02:16.4]} 19... Bd6
{[%clk 0:01:12.4]} 20. Nf3 {[%clk 0:02:12.2]} 20... Qf7 {[%clk 0:00:52.3]} 21.
exf5 {[%clk 0:02:07.4]} 21... Rae8 {[%clk 0:00:53]} 22. Ng5 {[%clk 0:02:05.3]}
22... Qf6 {[%clk 0:00:48.9]} 23. Ne4 {[%clk 0:02:01.9]} 23... Qf7 {[%clk
0:00:41.2]} 24. fxg6 {[%clk 0:01:54.1]} 24... Qxg6 {[%clk 0:00:40.3]} 25. Qa4
{[%clk 0:01:53]} 25... Bc8 {[%clk 0:00:22.3]} 26. Bxc8 {[%clk 0:01:51.2]} 26...
Rxc8 {[%clk 0:00:23.2]} 27. Kg2 {[%clk 0:01:48.5]} 27... Qf5 {[%clk 0:00:18.4]}
28. Qd1 {[%clk 0:01:46.6]} 28... Rf7 {[%clk 0:00:16.7]} 29. h3 {[%clk
0:01:42.6]} 29... Rcf8 {[%clk 0:00:17.2]} 30. Qg4+ {[%clk 0:01:41.6]} 30... Kh8
{[%clk 0:00:13.9]} 31. Qxf5 {[%clk 0:01:40.6]} 31... Rxf5 {[%clk 0:00:14.8]} 32.
a4 {[%clk 0:01:38.3]} 32... Rb8 {[%clk 0:00:07.4]} 33. a5 {[%clk 0:01:36.6]}
33... b5 {[%clk 0:00:07.4]} 34. cxb5 {[%clk 0:01:32.7]} 34... Rxb5 {[%clk
0:00:08.3]} 35. Reb1 {[%clk 0:01:32.1]} 35... a6 {[%clk 0:00:08]} 36. c4 {[%clk
0:01:26.8]} 36... Rb4 {[%clk 0:00:04.4]} 37. Rxb4 {[%clk 0:01:26.3]} 37... cxb4
{[%clk 0:00:05.3]} 38. c5 {[%clk 0:01:26.6]} 38... Bf8 {[%clk 0:00:04.1]} 39.
Rb1 {[%clk 0:01:27.2]} 1-0

[Event "Early-Titled-Tuesday-Blitz-April-02-2024"]
[Site "Chess.com"]
[Date "2024.04.02"]
[Round "2"]
[White "Harry_Rakkel"]
[Black "Goffredo_Fofi"]
[Result "1-0"]
[WhiteElo "2727"]
[BlackElo "2548"]
[TimeControl "180+1"]
[EndTime "8:16:34 PDT"]
[Termination "Harry_Rakkel won by resignation"]

1. c4 {[%clk 0:03:00.9]} 1... g6 {[%clk 0:02:59.9]} 2. Nc3 {[%clk 0:02:59.8]}
2... Bg7 {[%clk 0:03:00.8]} 3. d4 {[%clk 0:02:59.5]} 3... d6 {[%clk 0:02:59.2]}
4. e4 {[%clk 0:02:58.2]} 4... c5 {[%clk 0:02:58.9]} 5. d5 {[%clk 0:02:57.3]}
5... Bxc3+ {[%clk 0:02:59.4]} 6. bxc3 {[%clk 0:02:56.6]} 6... e5 {[%clk
0:03:00.3]} 7. h4 {[%clk 0:02:54.8]} 7... h6 {[%clk 0:02:59.9]} 8. Bd3 {[%clk
0:02:53.6]} 8... Qe7 {[%clk 0:02:53.4]} 9. Ne2 {[%clk 0:02:51]} 9... f5 {[%clk
0:02:47.2]} 10. h5 {[%clk 0:02:46.5]} 10... f4 {[%clk 0:02:25.8]} 11. hxg6
{[%clk 0:02:44.7]} 11... Qf6 {[%clk 0:02:25.9]} 12. g3 {[%clk 0:02:43.8]} 12...
fxg3 {[%clk 0:02:21.3]} 13. Nxg3 {[%clk 0:02:42.6]} 13... Qxg6 {[%clk
0:02:21.4]} 14. Rb1 {[%clk 0:02:35.8]} 14... Nd7 {[%clk 0:02:16]} 15. Be2 {[%clk
0:02:24]} 15... Ndf6 {[%clk 0:02:15]} 16. Qd3 {[%clk 0:02:15.8]} 16... Ne7
{[%clk 0:02:08.2]} 17. a4 {[%clk 0:02:14.6]} 17... Kd8 {[%clk 0:02:06.2]} 18. a5
{[%clk 0:02:14.3]} 18... h5 {[%clk 0:02:05.1]} 19. f3 {[%clk 0:01:51.3]} 19...
h4 {[%clk 0:02:02.1]} 20. Nf1 {[%clk 0:01:50.8]} 20... h3 {[%clk 0:01:49.3]} 21.
Qe3 {[%clk 0:01:47.5]} 21... Nh5 {[%clk 0:01:44.1]} 22. Rg1 {[%clk 0:01:43]}
22... Qf7 {[%clk 0:01:36.3]} 23. Qg5 {[%clk 0:01:40.1]} 23... Nf4 {[%clk
0:01:34.1]} 24. Bxf4 {[%clk 0:01:37.9]} 24... exf4 {[%clk 0:01:24.8]} 25. Nh2
{[%clk 0:01:34.4]} 25... Rh5 {[%clk 0:01:19]} 26. Qg7 {[%clk 0:01:33]} 26...
Qxg7 {[%clk 0:00:52.6]} 27. Rxg7 {[%clk 0:01:33.9]} 27... Rb8 {[%clk 0:00:51.8]}
28. Kf2 {[%clk 0:01:28.5]} 28... b6 {[%clk 0:00:50.7]} 29. Rf7 {[%clk
0:01:26.9]} 29... Rh4 {[%clk 0:00:49.1]} 30. Rg1 {[%clk 0:01:26.4]} 30... bxa5
{[%clk 0:00:41]} 31. Rgg7 {[%clk 0:01:26]} 31... Rb7 {[%clk 0:00:41.4]} 32. Rf8+
{[%clk 0:01:25.9]} 32... Kd7 {[%clk 0:00:38.9]} 33. Bd1 {[%clk 0:01:13.3]} 33...
Rb2+ {[%clk 0:00:32.9]} 34. Ke1 {[%clk 0:01:13.3]} 34... a4 {[%clk 0:00:29.7]}
35. Bxa4+ {[%clk 0:01:11.2]} 35... Kc7 {[%clk 0:00:28.2]} 36. Rxe7+ {[%clk
0:01:11.1]} 36... Kb8 {[%clk 0:00:25.3]} 37. Bd7 {[%clk 0:01:06]} 1-0

[Event "Early-Titled-Tuesday-Blitz-April-02-2024"]
[Site "Chess.com"]
[Date "2024.04.02"]
[Round "2"]
[White "Logman74"]
[Black "Sofia_Blokhin"]
[Result "0-1"]
[WhiteElo "2489"]
[BlackElo "2243"]
[TimeControl "180+1"]
[EndTime "8:16:35 PDT"]
[Termination "Sofia_Blokhin won by checkmate"]

1. e4 {[%clk 0:02:58.5]} 1... c5 {[%clk 0:02:59.1]} 2. Nf3 {[%clk 0:02:55.3]}
2... e6 {[%clk 0:02:59.1]} 3. d4 {[%clk 0:02:54.6]} 3... cxd4 {[%clk 0:02:59.4]}
4. Nxd4 {[%clk 0:02:54]} 4... a6 {[%clk 0:03:00]} 5. Nc3 {[%clk 0:02:54.2]} 5...
Qc7 {[%clk 0:03:00.2]} 6. g3 {[%clk 0:02:54.3]} 6... Nf6 {[%clk 0:02:59.9]} 7.
Bg2 {[%clk 0:02:54.3]} 7... Bb4 {[%clk 0:02:59.6]} 8. Ne2 {[%clk 0:02:52.5]}
8... Nc6 {[%clk 0:02:57.3]} 9. O-O {[%clk 0:02:51.5]} 9... Bc5 {[%clk
0:02:52.3]} 10. h3 {[%clk 0:02:46]} 10... O-O {[%clk 0:02:51.6]} 11. Kh2 {[%clk
0:02:46.1]} 11... d6 {[%clk 0:02:43.3]} 12. f4 {[%clk 0:02:40.9]} 12... b5
{[%clk 0:02:40.5]} 13. a3 {[%clk 0:02:38.2]} 13... Bb7 {[%clk 0:02:39.3]} 14.
Qd3 {[%clk 0:02:32.8]} 14... Rad8 {[%clk 0:02:37.6]} 15. Be3 {[%clk 0:02:33.3]}
15... Bxe3 {[%clk 0:02:33]} 16. Qxe3 {[%clk 0:02:33]} 16... Na5 {[%clk
0:02:21.6]} 17. b3 {[%clk 0:02:30.7]} 17... d5 {[%clk 0:02:18]} 18. e5 {[%clk
0:02:29.9]} 18... d4 {[%clk 0:02:01]} 19. Nxd4 {[%clk 0:02:23.1]} 19... Nd5
{[%clk 0:01:59.2]} 20. Nxd5 {[%clk 0:02:21.2]} 20... Bxd5 {[%clk 0:01:59]} 21.
Rad1 {[%clk 0:02:12.8]} 21... Bxg2 {[%clk 0:01:54.1]} 22. Kxg2 {[%clk
0:02:12.3]} 22... Nb7 {[%clk 0:01:46.7]} 23. Qf3 {[%clk 0:02:04.5]} 23... Rd5
{[%clk 0:01:39.6]} 24. Qg4 {[%clk 0:01:41.1]} 24... Rfd8 {[%clk 0:01:33.6]} 25.
c3 {[%clk 0:00:53.7]} 25... Qxc3 {[%clk 0:01:31.1]} 26. Nxe6 {[%clk 0:00:19.4]}
26... Rd2+ {[%clk 0:01:30.5]} 27. Rf2 {[%clk 0:00:01.9]} 27... Qc6+ {[%clk
0:01:07.3]} 28. Kh2 {[%clk 0:00:01.2]} 28... Rxf2+ {[%clk 0:01:06.2]} 29. Kg1
{[%clk 0:00:01.9]} 29... Qg2# {[%clk 0:01:06.2]} 0-1

[Event "Early-Titled-Tuesday-Blitz-April-02-2024"]
[Site "Chess.com"]
[Date "2024.04.02"]
[Round "2"]
[White "dropstoneDP"]
[Black "yuriydovzik"]
[Result "1-0"]
[WhiteElo "3009"]
[BlackElo "2123"]
[TimeControl "180+1"]
[EndTime "8:16:37 PDT"]
[Termination "dropstoneDP won on time"]

1. e4 {[%clk 0:03:00.9]} 1... c6 {[%clk 0:02:58.1]} 2. d4 {[%clk 0:03:00.4]}
2... Na6 {[%clk 0:02:57.6]} 3. Nf3 {[%clk 0:02:59.5]} 3... g6 {[%clk 0:02:52.9]}
4. c3 {[%clk 0:02:57.7]} 4... Nc7 {[%clk 0:02:51.6]} 5. Bd3 {[%clk 0:02:58]}
5... d5 {[%clk 0:02:49.8]} 6. Nbd2 {[%clk 0:02:57.8]} 6... Bg7 {[%clk
0:02:47.6]} 7. h3 {[%clk 0:02:57.6]} 7... Nf6 {[%clk 0:02:41]} 8. e5 {[%clk
0:02:55.4]} 8... Nd7 {[%clk 0:02:39.8]} 9. h4 {[%clk 0:02:50.2]} 9... h5 {[%clk
0:02:30.7]} 10. Nf1 {[%clk 0:02:46.7]} 10... Nf8 {[%clk 0:02:18.4]} 11. Ne3
{[%clk 0:02:37.5]} 11... Nce6 {[%clk 0:02:08]} 12. g3 {[%clk 0:02:36.8]} 12...
Qc7 {[%clk 0:01:57.5]} 13. Bd2 {[%clk 0:02:35.2]} 13... Bd7 {[%clk 0:01:54.4]}
14. a4 {[%clk 0:02:32.3]} 14... Nh7 {[%clk 0:01:47.2]} 15. a5 {[%clk 0:02:31.8]}
15... O-O {[%clk 0:01:41.1]} 16. Bc2 {[%clk 0:02:29.3]} 16... b6 {[%clk
0:01:37]} 17. a6 {[%clk 0:02:08.9]} 17... Rad8 {[%clk 0:01:26.8]} 18. Qe2 {[%clk
0:02:08.1]} 18... Bc8 {[%clk 0:01:25.3]} 19. Bd3 {[%clk 0:01:56.4]} 19... c5
{[%clk 0:01:23.2]} 20. Bb5 {[%clk 0:01:56.3]} 20... c4 {[%clk 0:01:14.6]} 21.
Ng2 {[%clk 0:01:50.2]} 21... Bd7 {[%clk 0:01:09.2]} 22. Bxd7 {[%clk 0:01:49.9]}
22... Qxd7 {[%clk 0:01:05]} 23. O-O {[%clk 0:01:50.4]} 23... Nc7 {[%clk
0:00:58.5]} 24. Nf4 {[%clk 0:01:48.6]} 24... Qb5 {[%clk 0:00:54.8]} 25. e6
{[%clk 0:01:42.8]} 25... Rd6 {[%clk 0:00:35]} 26. exf7+ {[%clk 0:01:38.5]} 26...
Rxf7 {[%clk 0:00:34.4]} 27. Ne5 {[%clk 0:01:32.9]} 27... Bxe5 {[%clk 0:00:28.5]}
28. dxe5 {[%clk 0:01:33.8]} 28... Rc6 {[%clk 0:00:24.8]} 29. Be3 {[%clk
0:01:27.7]} 29... Nf8 {[%clk 0:00:23]} 30. Rfd1 {[%clk 0:01:19.5]} 30... e6
{[%clk 0:00:19.4]} 31. Qd2 {[%clk 0:01:15.6]} 31... Nxa6 {[%clk 0:00:15]} 32.
Ne2 {[%clk 0:01:16]} 1-0

[Event "Early-Titled-Tuesday-Blitz-April-02-2024"]
[Site "Chess.com"]
[Date "2024.04.02"]
[Round "2"]
[White "JRenatoMaranhao"]
[Black "agvania123"]
[Result "0-1"]
[WhiteElo "1945"]
[BlackElo "2420"]
[TimeControl "180+1"]
[EndTime "8:16:40 PDT"]
[Termination "agvania123 won on time"]

1. e4 {[%clk 0:03:00.9]} 1... d5 {[%clk 0:02:59.2]} 2. exd5 {[%clk 0:02:59.1]}
2... Qxd5 {[%clk 0:03:00.1]} 3. Nc3 {[%clk 0:02:59]} 3... Qd8 {[%clk 0:03:00.1]}
4. d4 {[%clk 0:02:59]} 4... Nf6 {[%clk 0:02:59.8]} 5. Be2 {[%clk 0:02:52.6]}
5... c6 {[%clk 0:02:50]} 6. Bg5 {[%clk 0:02:46.8]} 6... Bf5 {[%clk 0:02:43.5]}
7. Nf3 {[%clk 0:02:39.2]} 7... h6 {[%clk 0:02:41.7]} 8. Bxf6 {[%clk 0:02:36.4]}
8... exf6 {[%clk 0:02:42.6]} 9. O-O {[%clk 0:02:29.5]} 9... Bb4 {[%clk
0:02:38.7]} 10. h3 {[%clk 0:02:24.5]} 10... O-O {[%clk 0:02:36.9]} 11. Bd3
{[%clk 0:02:22.1]} 11... Bxd3 {[%clk 0:02:28.9]} 12. Qxd3 {[%clk 0:02:23]} 12...
Bxc3 {[%clk 0:02:08.7]} 13. Qxc3 {[%clk 0:02:21.2]} 13... Nd7 {[%clk 0:02:08.1]}
14. g3 {[%clk 0:02:08.6]} 14... Nb6 {[%clk 0:02:07.2]} 15. Kg2 {[%clk
0:02:04.7]} 15... Qd5 {[%clk 0:02:05.5]} 16. a4 {[%clk 0:01:50.8]} 16... Rfe8
{[%clk 0:01:57.7]} 17. a5 {[%clk 0:01:48.4]} 17... Nc4 {[%clk 0:01:57.1]} 18.
Qb3 {[%clk 0:01:32.7]} 18... Re7 {[%clk 0:01:48.8]} 19. Ra4 {[%clk 0:01:23.5]}
19... Nd6 {[%clk 0:01:29.2]} 20. Qxd5 {[%clk 0:01:22.4]} 20... cxd5 {[%clk
0:01:30.1]} 21. Rb4 {[%clk 0:01:01.7]} 21... Rc8 {[%clk 0:01:29.7]} 22. c3
{[%clk 0:00:55.1]} 22... Rc4 {[%clk 0:01:14.6]} 23. Rxc4 {[%clk 0:00:43.6]}
23... Nxc4 {[%clk 0:01:09.7]} 24. b4 {[%clk 0:00:23.8]} 24... Re2 {[%clk
0:01:06.8]} 25. Re1 {[%clk 0:00:20.2]} 25... Ne3+ {[%clk 0:01:06.5]} 26. Kg1
{[%clk 0:00:16.6]} 26... Rxe1+ {[%clk 0:01:07.1]} 27. Nxe1 {[%clk 0:00:17.4]}
27... Nd1 {[%clk 0:01:07.7]} 28. c4 {[%clk 0:00:04.2]} 28... dxc4 {[%clk
0:01:06.7]} 29. Nc2 {[%clk 0:00:01.9]} 29... Nc3 {[%clk 0:00:59.9]} 0-1

[Event "Early-Titled-Tuesday-Blitz-April-02-2024"]
[Site "Chess.com"]
[Date "2024.04.02"]
[Round "2"]
[White "MaxLeto"]
[Black "cmunda"]
[Result "1-0"]
[WhiteElo "2478"]
[BlackElo "2174"]
[TimeControl "180+1"]
[EndTime "8:16:44 PDT"]
[Termination "MaxLeto won by resignation"]

1. g4 {[%clk 0:02:55]} 1... e5 {[%clk 0:02:58]} 2. Bg2 {[%clk 0:02:50.4]} 2...
Nc6 {[%clk 0:02:57.1]} 3. c4 {[%clk 0:02:48.9]} 3... d6 {[%clk 0:02:56.9]} 4. h3
{[%clk 0:02:48.3]} 4... f5 {[%clk 0:02:55.3]} 5. Nc3 {[%clk 0:02:46.9]} 5... g6
{[%clk 0:02:50.3]} 6. e3 {[%clk 0:02:06.6]} 6... Bg7 {[%clk 0:02:49.5]} 7. d3
{[%clk 0:02:00.3]} 7... Nge7 {[%clk 0:02:48.7]} 8. Qe2 {[%clk 0:01:53.9]} 8...
O-O {[%clk 0:02:48.3]} 9. gxf5 {[%clk 0:01:45.5]} 9... Nxf5 {[%clk 0:02:46.7]}
10. Nf3 {[%clk 0:01:44.6]} 10... Nh4 {[%clk 0:02:43.7]} 11. Nxh4 {[%clk
0:01:44]} 11... Qxh4 {[%clk 0:02:43.3]} 12. Bd2 {[%clk 0:01:38.5]} 12... Bd7
{[%clk 0:02:32.6]} 13. Ne4 {[%clk 0:01:31.7]} 13... a5 {[%clk 0:02:22.3]} 14.
O-O-O {[%clk 0:01:30.1]} 14... a4 {[%clk 0:02:22.2]} 15. Kb1 {[%clk 0:01:25.8]}
15... a3 {[%clk 0:02:22]} 16. b3 {[%clk 0:01:26.5]} 16... Rab8 {[%clk 0:02:05]}
17. Bc1 {[%clk 0:01:15.2]} 17... b5 {[%clk 0:02:03.2]} 18. Bxa3 {[%clk
0:00:47.3]} 18... bxc4 {[%clk 0:02:03.1]} 19. dxc4 {[%clk 0:00:48.2]} 19... Ra8
{[%clk 0:01:47.5]} 20. Bb2 {[%clk 0:00:39.2]} 20... Ra7 {[%clk 0:01:47.4]} 21.
Ng3 {[%clk 0:00:32.4]} 21... Rb8 {[%clk 0:01:41.7]} 22. a3 {[%clk 0:00:32.8]}
22... Na5 {[%clk 0:01:39.6]} 23. b4 {[%clk 0:00:27.2]} 23... Bc6 {[%clk
0:01:27]} 24. Bxc6 {[%clk 0:00:18.8]} 24... Nxc6 {[%clk 0:01:27]} 25. Qg4 {[%clk
0:00:19.7]} 25... Qf6 {[%clk 0:01:20.2]} 26. Ne4 {[%clk 0:00:18.9]} 26... Qe7
{[%clk 0:01:20]} 27. h4 {[%clk 0:00:18.4]} 27... Qf7 {[%clk 0:01:09.9]} 28. h5
{[%clk 0:00:14]} 28... Qxc4 {[%clk 0:01:06.6]} 29. Nf6+ {[%clk 0:00:14.2]} 29...
Bxf6 {[%clk 0:01:03.1]} 30. Qxc4+ {[%clk 0:00:15.1]} 30... Kg7 {[%clk
0:01:00.4]} 31. Qxc6 {[%clk 0:00:16]} 1-0

[Event "Early-Titled-Tuesday-Blitz-April-02-2024"]
[Site "Chess.com"]
[Date "2024.04.02"]
[Round "2"]
[White "NovoselovRoman"]
[Black "Zhigalko_Sergei"]
[Result "0-1"]
[WhiteElo "2599"]
[BlackElo "2875"]
[TimeControl "180+1"]
[EndTime "8:16:46 PDT"]
[Termination "Zhigalko_Sergei won by resignation"]

1. e4 {[%clk 0:03:00.9]} 1... c5 {[%clk 0:02:59.4]} 2. Nc3 {[%clk 0:03:01.3]}
2... Nc6 {[%clk 0:02:59.7]} 3. g3 {[%clk 0:03:01.7]} 3... g6 {[%clk 0:02:59.8]}
4. Bg2 {[%clk 0:03:02.1]} 4... Bg7 {[%clk 0:03:00.3]} 5. d3 {[%clk 0:03:02.7]}
5... Rb8 {[%clk 0:02:59.5]} 6. a4 {[%clk 0:03:02.4]} 6... a6 {[%clk 0:02:59.7]}
7. Be3 {[%clk 0:03:03]} 7... d6 {[%clk 0:02:57.9]} 8. Nf3 {[%clk 0:02:57.9]}
8... Bg4 {[%clk 0:02:55.7]} 9. h3 {[%clk 0:02:57.9]} 9... Bxf3 {[%clk 0:02:56]}
10. Bxf3 {[%clk 0:02:58.1]} 10... Nf6 {[%clk 0:02:54.7]} 11. O-O {[%clk
0:02:57.4]} 11... O-O {[%clk 0:02:54]} 12. Qd2 {[%clk 0:02:57.6]} 12... b5
{[%clk 0:02:51.3]} 13. axb5 {[%clk 0:02:57.6]} 13... axb5 {[%clk 0:02:52.2]} 14.
Ne2 {[%clk 0:02:58.1]} 14... b4 {[%clk 0:02:50.7]} 15. Bh6 {[%clk 0:02:53.8]}
15... Bxh6 {[%clk 0:02:40.4]} 16. Qxh6 {[%clk 0:02:54.7]} 16... Nd4 {[%clk
0:02:36.5]} 17. Nxd4 {[%clk 0:02:44.4]} 17... cxd4 {[%clk 0:02:37.4]} 18. h4
{[%clk 0:02:29.3]} 18... b3 {[%clk 0:02:26.9]} 19. cxb3 {[%clk 0:02:23.6]} 19...
Rxb3 {[%clk 0:02:26.1]} 20. Rfd1 {[%clk 0:02:24.1]} 20... Rxb2 {[%clk
0:02:19.5]} 21. h5 {[%clk 0:02:23]} 21... Qc8 {[%clk 0:01:57]} 22. Rac1 {[%clk
0:02:10.8]} 22... Qh3 {[%clk 0:01:47.5]} 23. Rc7 {[%clk 0:01:53.7]} 23... Ng4
{[%clk 0:01:22.8]} 24. Bxg4 {[%clk 0:01:32.6]} 24... Qxg4 {[%clk 0:01:23.7]} 25.
Rd2 {[%clk 0:00:58.9]} 25... Rb5 {[%clk 0:01:01.9]} 26. hxg6 {[%clk 0:00:45.7]}
26... hxg6 {[%clk 0:01:01.3]} 27. Rxe7 {[%clk 0:00:39.7]} 27... Ra8 {[%clk
0:00:27.8]} 28. Qh1 {[%clk 0:00:37.7]} 28... Rb1+ {[%clk 0:00:21]} 29. Kg2
{[%clk 0:00:36.8]} 29... Rxh1 {[%clk 0:00:20.4]} 30. Kxh1 {[%clk 0:00:37.7]}
30... Qh3+ {[%clk 0:00:20.7]} 0-1